{"text_format":"3","workbook":"xlsx","n_sheets":1,"sheets":["Бюджет витрат"],"not_rendered":{"charts":2,"defined_names":3},"read":"whole","date_system":"1900"}

{"sheet":"Бюджет витрат","index":0,"n_rows":47,"n_cols":7,"rows_kept":47,"merged":[[0,1,0,4],[0,5,0,6],[16,1,16,6],[48,1,48,6]]}
[null,"Бюджет витрат",{"$nulls":3},"ТОВ «Добробуд», 2013 р."]
[]
[]
[null," БЮДЖЕТ НА ПРАЦІВНИКІВ"]
{"$rows_empty":7}
[null,"СТАН","ПРАЦІВНИКИ","БЮДЖЕТ","ФАКТИЧНО","РІЗНИЦЯ (грн.)","РІЗНИЦЯ (%)"]
[null,{"$f":"IFERROR(tblВитрати_на_працівників[[#This Row],[ФАКТИЧНО]]/tblВитрати_на_працівників[[#This Row],[БЮДЖЕТ]],\"\")","v":{"v":1.13,"d":"$1.13"}},"Офіс",{"v":500,"d":"500.00₴"},{"v":565,"d":"565.00₴"},{"$f":"tblВитрати_на_працівників[[#This Row],[БЮДЖЕТ]]-tblВитрати_на_працівників[[#This Row],[ФАКТИЧНО]]","v":{"v":-65,"d":"-65.00₴"}},{"$f":"IFERROR(tblВитрати_на_працівників[РІЗНИЦЯ (грн.)]/tblВитрати_на_працівників[БЮДЖЕТ],\"\")","v":{"v":-0.13,"d":"-13%"}}]
[null,{"$f":"IFERROR(tblВитрати_на_працівників[[#This Row],[ФАКТИЧНО]]/tblВитрати_на_працівників[[#This Row],[БЮДЖЕТ]],\"\")","v":{"v":1.2,"d":"$1.20"}},"Магазин",{"v":125,"d":"125.00₴"},{"v":150,"d":"150.00₴"},{"$f":"tblВитрати_на_працівників[[#This Row],[БЮДЖЕТ]]-tblВитрати_на_працівників[[#This Row],[ФАКТИЧНО]]","v":{"v":-25,"d":"-25.00₴"}},{"$f":"IFERROR(tblВитрати_на_працівників[РІЗНИЦЯ (грн.)]/tblВитрати_на_працівників[БЮДЖЕТ],\"\")","v":{"v":-0.2,"d":"-20%"}}]
[null,{"$f":"IFERROR(tblВитрати_на_працівників[[#This Row],[ФАКТИЧНО]]/tblВитрати_на_працівників[[#This Row],[БЮДЖЕТ]],\"\")","v":{"v":1,"d":"$1.00"}},"Продавці",{"v":100,"d":"100.00₴"},{"v":100,"d":"100.00₴"},{"$f":"tblВитрати_на_працівників[[#This Row],[БЮДЖЕТ]]-tblВитрати_на_працівників[[#This Row],[ФАКТИЧНО]]","v":{"v":0,"d":"0.00₴"}},{"$f":"IFERROR(tblВитрати_на_працівників[РІЗНИЦЯ (грн.)]/tblВитрати_на_працівників[БЮДЖЕТ],\"\")","v":{"v":0,"d":"0%"}}]
[null,{"$f":"IFERROR(tblВитрати_на_працівників[[#This Row],[ФАКТИЧНО]]/tblВитрати_на_працівників[[#This Row],[БЮДЖЕТ]],\"\")","v":{"v":0.9,"d":"$0.90"}},"Інше",{"v":100,"d":"100.00₴"},{"v":90,"d":"90.00₴"},{"$f":"tblВитрати_на_працівників[[#This Row],[БЮДЖЕТ]]-tblВитрати_на_працівників[[#This Row],[ФАКТИЧНО]]","v":{"v":10,"d":"10.00₴"}},{"$f":"IFERROR(tblВитрати_на_працівників[РІЗНИЦЯ (грн.)]/tblВитрати_на_працівників[БЮДЖЕТ],\"\")","v":{"v":0.1,"d":"10%"}}]
[]
[]
[null,"БЮДЖЕТ НА ОПЕРАТИВНУ ДІЯЛЬНІСТЬ"]
{"$rows_empty":7}
[null,"СТАН","Операційна діяльність","БЮДЖЕТ","ФАКТИЧНО","РІЗНИЦЯ (грн.)","РІЗНИЦЯ (%)"]
[null,{"$f":"IFERROR(tblЕксплуатаційні_витрати[[#This Row],[ФАКТИЧНО]]/tblЕксплуатаційні_витрати[[#This Row],[БЮДЖЕТ]],\"\")","v":{"v":0.98,"d":"$0.98"}},"Реклама",{"v":250,"d":"250.00₴"},{"v":245,"d":"245.00₴"},{"$f":"tblЕксплуатаційні_витрати[[#This Row],[БЮДЖЕТ]]-tblЕксплуатаційні_витрати[[#This Row],[ФАКТИЧНО]]","v":{"v":5,"d":"5.00₴"}},{"$f":"IFERROR(tblЕксплуатаційні_витрати[[#This Row],[РІЗНИЦЯ (грн.)]]/tblЕксплуатаційні_витрати[[#This Row],[БЮДЖЕТ]],\"\")","v":{"v":0.02,"d":"2%"}}]
[null,{"$f":"IFERROR(tblЕксплуатаційні_витрати[[#This Row],[ФАКТИЧНО]]/tblЕксплуатаційні_витрати[[#This Row],[БЮДЖЕТ]],\"\")","v":{"v":1.2,"d":"$1.20"}},"Борг",{"v":125,"d":"125.00₴"},{"v":150,"d":"150.00₴"},{"$f":"tblЕксплуатаційні_витрати[[#This Row],[БЮДЖЕТ]]-tblЕксплуатаційні_витрати[[#This Row],[ФАКТИЧНО]]","v":{"v":-25,"d":"-25.00₴"}},{"$f":"IFERROR(tblЕксплуатаційні_витрати[[#This Row],[РІЗНИЦЯ (грн.)]]/tblЕксплуатаційні_витрати[[#This Row],[БЮДЖЕТ]],\"\")","v":{"v":-0.2,"d":"-20%"}}]
[null,{"$f":"IFERROR(tblЕксплуатаційні_витрати[[#This Row],[ФАКТИЧНО]]/tblЕксплуатаційні_витрати[[#This Row],[БЮДЖЕТ]],\"\")","v":{"v":1,"d":"$1.00"}},"Переваги",{"v":100,"d":"100.00₴"},{"v":100,"d":"100.00₴"},{"$f":"tblЕксплуатаційні_витрати[[#This Row],[БЮДЖЕТ]]-tblЕксплуатаційні_витрати[[#This Row],[ФАКТИЧНО]]","v":{"v":0,"d":"0.00₴"}},{"$f":"IFERROR(tblЕксплуатаційні_витрати[[#This Row],[РІЗНИЦЯ (грн.)]]/tblЕксплуатаційні_витрати[[#This Row],[БЮДЖЕТ]],\"\")","v":{"v":0,"d":"0%"}}]
[null,{"$f":"IFERROR(tblЕксплуатаційні_витрати[[#This Row],[ФАКТИЧНО]]/tblЕксплуатаційні_витрати[[#This Row],[БЮДЖЕТ]],\"\")","v":{"v":0.9,"d":"$0.90"}},"Приладдя",{"v":100,"d":"100.00₴"},{"v":90,"d":"90.00₴"},{"$f":"tblЕксплуатаційні_витрати[[#This Row],[БЮДЖЕТ]]-tblЕксплуатаційні_витрати[[#This Row],[ФАКТИЧНО]]","v":{"v":10,"d":"10.00₴"}},{"$f":"IFERROR(tblЕксплуатаційні_витрати[[#This Row],[РІЗНИЦЯ (грн.)]]/tblЕксплуатаційні_витрати[[#This Row],[БЮДЖЕТ]],\"\")","v":{"v":0.1,"d":"10%"}}]
[null,{"$f":"IFERROR(tblЕксплуатаційні_витрати[[#This Row],[ФАКТИЧНО]]/tblЕксплуатаційні_витрати[[#This Row],[БЮДЖЕТ]],\"\")","v":""},"Поштові витрати",null,null,{"$f":"tblЕксплуатаційні_витрати[[#This Row],[БЮДЖЕТ]]-tblЕксплуатаційні_витрати[[#This Row],[ФАКТИЧНО]]","v":{"v":0,"d":"0.00₴"}},{"$f":"IFERROR(tblЕксплуатаційні_витрати[[#This Row],[РІЗНИЦЯ (грн.)]]/tblЕксплуатаційні_витрати[[#This Row],[БЮДЖЕТ]],\"\")","v":""}]
[null,{"$f":"IFERROR(tblЕксплуатаційні_витрати[[#This Row],[ФАКТИЧНО]]/tblЕксплуатаційні_витрати[[#This Row],[БЮДЖЕТ]],\"\")","v":""},"Оренда/Застава",null,null,{"$f":"tblЕксплуатаційні_витрати[[#This Row],[БЮДЖЕТ]]-tblЕксплуатаційні_витрати[[#This Row],[ФАКТИЧНО]]","v":{"v":0,"d":"0.00₴"}},{"$f":"IFERROR(tblЕксплуатаційні_витрати[[#This Row],[РІЗНИЦЯ (грн.)]]/tblЕксплуатаційні_витрати[[#This Row],[БЮДЖЕТ]],\"\")","v":""}]
[null,{"$f":"IFERROR(tblЕксплуатаційні_витрати[[#This Row],[ФАКТИЧНО]]/tblЕксплуатаційні_витрати[[#This Row],[БЮДЖЕТ]],\"\")","v":""},"Витрати на продаж",null,null,{"$f":"tblЕксплуатаційні_витрати[[#This Row],[БЮДЖЕТ]]-tblЕксплуатаційні_витрати[[#This Row],[ФАКТИЧНО]]","v":{"v":0,"d":"0.00₴"}},{"$f":"IFERROR(tblЕксплуатаційні_витрати[[#This Row],[РІЗНИЦЯ (грн.)]]/tblЕксплуатаційні_витрати[[#This Row],[БЮДЖЕТ]],\"\")","v":""}]
[null,{"$f":"IFERROR(tblЕксплуатаційні_витрати[[#This Row],[ФАКТИЧНО]]/tblЕксплуатаційні_витрати[[#This Row],[БЮДЖЕТ]],\"\")","v":""},"Податки",null,null,{"$f":"tblЕксплуатаційні_витрати[[#This Row],[БЮДЖЕТ]]-tblЕксплуатаційні_витрати[[#This Row],[ФАКТИЧНО]]","v":{"v":0,"d":"0.00₴"}},{"$f":"IFERROR(tblЕксплуатаційні_витрати[[#This Row],[РІЗНИЦЯ (грн.)]]/tblЕксплуатаційні_витрати[[#This Row],[БЮДЖЕТ]],\"\")","v":""}]
[null,{"$f":"IFERROR(tblЕксплуатаційні_витрати[[#This Row],[ФАКТИЧНО]]/tblЕксплуатаційні_витрати[[#This Row],[БЮДЖЕТ]],\"\")","v":""},"Комунальні послуги",null,null,{"$f":"tblЕксплуатаційні_витрати[[#This Row],[БЮДЖЕТ]]-tblЕксплуатаційні_витрати[[#This Row],[ФАКТИЧНО]]","v":{"v":0,"d":"0.00₴"}},{"$f":"IFERROR(tblЕксплуатаційні_витрати[[#This Row],[РІЗНИЦЯ (грн.)]]/tblЕксплуатаційні_витрати[[#This Row],[БЮДЖЕТ]],\"\")","v":""}]
[null,{"$f":"IFERROR(tblЕксплуатаційні_витрати[[#This Row],[ФАКТИЧНО]]/tblЕксплуатаційні_витрати[[#This Row],[БЮДЖЕТ]],\"\")","v":""},"Інше",null,null,{"$f":"tblЕксплуатаційні_витрати[[#This Row],[БЮДЖЕТ]]-tblЕксплуатаційні_витрати[[#This Row],[ФАКТИЧНО]]","v":{"v":0,"d":"0.00₴"}},{"$f":"IFERROR(tblЕксплуатаційні_витрати[[#This Row],[РІЗНИЦЯ (грн.)]]/tblЕксплуатаційні_витрати[[#This Row],[БЮДЖЕТ]],\"\")","v":""}]
[null,{"$f":"IFERROR(tblЕксплуатаційні_витрати[[#This Row],[ФАКТИЧНО]]/tblЕксплуатаційні_витрати[[#This Row],[БЮДЖЕТ]],\"\")","v":""},"Страхування",null,null,{"$f":"tblЕксплуатаційні_витрати[[#This Row],[БЮДЖЕТ]]-tblЕксплуатаційні_витрати[[#This Row],[ФАКТИЧНО]]","v":{"v":0,"d":"0.00₴"}},{"$f":"IFERROR(tblЕксплуатаційні_витрати[[#This Row],[РІЗНИЦЯ (грн.)]]/tblЕксплуатаційні_витрати[[#This Row],[БЮДЖЕТ]],\"\")","v":""}]
[null,{"$f":"IFERROR(tblЕксплуатаційні_витрати[[#This Row],[ФАКТИЧНО]]/tblЕксплуатаційні_витрати[[#This Row],[БЮДЖЕТ]],\"\")","v":""},"Відсоток",null,null,{"$f":"tblЕксплуатаційні_витрати[[#This Row],[БЮДЖЕТ]]-tblЕксплуатаційні_витрати[[#This Row],[ФАКТИЧНО]]","v":{"v":0,"d":"0.00₴"}},{"$f":"IFERROR(tblЕксплуатаційні_витрати[[#This Row],[РІЗНИЦЯ (грн.)]]/tblЕксплуатаційні_витрати[[#This Row],[БЮДЖЕТ]],\"\")","v":""}]
[null,{"$f":"IFERROR(tblЕксплуатаційні_витрати[[#This Row],[ФАКТИЧНО]]/tblЕксплуатаційні_витрати[[#This Row],[БЮДЖЕТ]],\"\")","v":""},"Телефон",null,null,{"$f":"tblЕксплуатаційні_витрати[[#This Row],[БЮДЖЕТ]]-tblЕксплуатаційні_витрати[[#This Row],[ФАКТИЧНО]]","v":{"v":0,"d":"0.00₴"}},{"$f":"IFERROR(tblЕксплуатаційні_витрати[[#This Row],[РІЗНИЦЯ (грн.)]]/tblЕксплуатаційні_витрати[[#This Row],[БЮДЖЕТ]],\"\")","v":""}]
[null,{"$f":"IFERROR(tblЕксплуатаційні_витрати[[#This Row],[ФАКТИЧНО]]/tblЕксплуатаційні_витрати[[#This Row],[БЮДЖЕТ]],\"\")","v":""},"Ремонт і обслуговування",null,null,{"$f":"tblЕксплуатаційні_витрати[[#This Row],[БЮДЖЕТ]]-tblЕксплуатаційні_витрати[[#This Row],[ФАКТИЧНО]]","v":{"v":0,"d":"0.00₴"}},{"$f":"IFERROR(tblЕксплуатаційні_витрати[[#This Row],[РІЗНИЦЯ (грн.)]]/tblЕксплуатаційні_витрати[[#This Row],[БЮДЖЕТ]],\"\")","v":""}]
[null,{"$f":"IFERROR(tblЕксплуатаційні_витрати[[#This Row],[ФАКТИЧНО]]/tblЕксплуатаційні_витрати[[#This Row],[БЮДЖЕТ]],\"\")","v":""},"Судові витрати",null,null,{"$f":"tblЕксплуатаційні_витрати[[#This Row],[БЮДЖЕТ]]-tblЕксплуатаційні_витрати[[#This Row],[ФАКТИЧНО]]","v":{"v":0,"d":"0.00₴"}},{"$f":"IFERROR(tblЕксплуатаційні_витрати[[#This Row],[РІЗНИЦЯ (грн.)]]/tblЕксплуатаційні_витрати[[#This Row],[БЮДЖЕТ]],\"\")","v":""}]
[null,{"$f":"IFERROR(tblЕксплуатаційні_витрати[[#This Row],[ФАКТИЧНО]]/tblЕксплуатаційні_витрати[[#This Row],[БЮДЖЕТ]],\"\")","v":""},"Амортизація",null,null,{"$f":"tblЕксплуатаційні_витрати[[#This Row],[БЮДЖЕТ]]-tblЕксплуатаційні_витрати[[#This Row],[ФАКТИЧНО]]","v":{"v":0,"d":"0.00₴"}},{"$f":"IFERROR(tblЕксплуатаційні_витрати[[#This Row],[РІЗНИЦЯ (грн.)]]/tblЕксплуатаційні_витрати[[#This Row],[БЮДЖЕТ]],\"\")","v":""}]
[null,{"$f":"IFERROR(tblЕксплуатаційні_витрати[[#This Row],[ФАКТИЧНО]]/tblЕксплуатаційні_витрати[[#This Row],[БЮДЖЕТ]],\"\")","v":""},"Доставка",null,null,{"$f":"tblЕксплуатаційні_витрати[[#This Row],[БЮДЖЕТ]]-tblЕксплуатаційні_витрати[[#This Row],[ФАКТИЧНО]]","v":{"v":0,"d":"0.00₴"}},{"$f":"IFERROR(tblЕксплуатаційні_витрати[[#This Row],[РІЗНИЦЯ (грн.)]]/tblЕксплуатаційні_витрати[[#This Row],[БЮДЖЕТ]],\"\")","v":""}]
[null,{"$f":"IFERROR(tblЕксплуатаційні_витрати[[#This Row],[ФАКТИЧНО]]/tblЕксплуатаційні_витрати[[#This Row],[БЮДЖЕТ]],\"\")","v":""},"Зберігання",null,null,{"$f":"tblЕксплуатаційні_витрати[[#This Row],[БЮДЖЕТ]]-tblЕксплуатаційні_витрати[[#This Row],[ФАКТИЧНО]]","v":{"v":0,"d":"0.00₴"}},{"$f":"IFERROR(tblЕксплуатаційні_витрати[[#This Row],[РІЗНИЦЯ (грн.)]]/tblЕксплуатаційні_витрати[[#This Row],[БЮДЖЕТ]],\"\")","v":""}]
[null,{"$f":"IFERROR(tblЕксплуатаційні_витрати[[#This Row],[ФАКТИЧНО]]/tblЕксплуатаційні_витрати[[#This Row],[БЮДЖЕТ]],\"\")","v":""},"Інше",null,null,{"$f":"tblЕксплуатаційні_витрати[[#This Row],[БЮДЖЕТ]]-tblЕксплуатаційні_витрати[[#This Row],[ФАКТИЧНО]]","v":{"v":0,"d":"0.00₴"}},{"$f":"IFERROR(tblЕксплуатаційні_витрати[[#This Row],[РІЗНИЦЯ (грн.)]]/tblЕксплуатаційні_витрати[[#This Row],[БЮДЖЕТ]],\"\")","v":""}]
[null,null,"Загальні витрати",{"$f":"SUBTOTAL(109,tblЕксплуатаційні_витрати[БЮДЖЕТ],tblВитрати_на_працівників[БЮДЖЕТ])","v":{"v":1400,"d":"1,400.00₴"}},{"$f":"SUBTOTAL(109,tblЕксплуатаційні_витрати[ФАКТИЧНО],tblВитрати_на_працівників[ФАКТИЧНО])","v":{"v":1490,"d":"1,490.00₴"}},{"$f":"SUBTOTAL(109,tblЕксплуатаційні_витрати[РІЗНИЦЯ (грн.)],tblВитрати_на_працівників[РІЗНИЦЯ (грн.)])","v":{"v":-90,"d":"-90.00₴"}},{"$f":"IFERROR(SUM(tblЕксплуатаційні_витрати[[#Totals],[РІЗНИЦЯ (грн.)]]/tblЕксплуатаційні_витрати[[#Totals],[БЮДЖЕТ]]),\"\")","v":{"v":-0.06428571428571428,"d":"-6%"}}]